bitfinex/quotes_SOLUSD_20250602
["timestamp","ask_amount","ask_price","bid_price","bid_amount"]
[1748892073176,146.4,152.56,152.53,48.94630563]
[1748892073360,40.44,152.55,152.53,48.94630563]
[1748892073551,169.92964417,152.56,152.53,48.94630563]
[1748892073752,40.44,152.55,152.53,48.94630563]
[1748892074055,146.4,152.56,152.55,26.0]
[1748892074760,146.4,152.56,152.55,49.52964417]
[1748892075067,146.4,152.56,152.55,26.0]
[1748892075269,146.4,152.56,152.55,32.55522779]
[1748892076667,51.02,152.57,152.55,56.08487196]
[1748892077077,40.44,152.57,152.55,56.08487196]
[1748892077748,40.44,152.57,152.55,32.55522779]
[1748892080963,8.114823,152.59,152.55,48.94329727]
[1748892081169,40.44,152.58,152.55,48.94329727]
[1748892081570,40.44,152.58,152.55,72.47294144]
[1748892082079,40.44,152.58,152.55,48.94329727]
[1748892082385,40.44,152.58,152.55,72.47294144]
[1748892083055,40.44,152.58,152.55,48.94329727]
[1748892083954,31.64446717,152.59,152.55,48.94329727]
[1748892084161,40.42,152.58,152.55,48.94329727]
[1748892084867,146.4,152.6,152.55,48.94329727]
[1748892084868,146.4,152.6,152.58,26.0]
[1748892085069,186.82,152.6,152.58,26.0]
[1748892085260,186.82,152.6,152.59,6.5535094]
[1748892085858,10.58,152.61,152.59,6.5535094]
[1748892086081,51.0,152.61,152.59,6.5535094]
[1748892086380,23.52964417,152.6,152.59,6.5535094]
[1748892086758,51.0,152.61,152.59,6.5535094]
[1748892086981,10.58,152.61,152.59,6.5535094]
[1748892087180,51.0,152.61,152.59,6.5535094]
[1748892088264,16.5239222,152.63,152.62,26.0]
[1748892088463,56.9439222,152.63,152.62,26.0]
[1748892089077,16.5239222,152.63,152.62,26.0]
[1748892089283,16.5239222,152.63,152.62,32.5522212]
[1748892089979,56.9439222,152.63,152.62,32.5522212]
[1748892090281,156.98,152.65,152.62,48.9327742]
[1748892090463,40.42,152.64,152.62,72.46241837]
[1748892090774,40.42,152.64,152.62,48.9327742]
[1748892090957,197.4,152.65,152.62,48.9327742]
[1748892091579,220.92964417,152.65,152.62,32.5522212]
[1748892091789,23.52964417,152.63,152.56,6.55479811]
[1748892091984,23.52964417,152.57,152.56,6.55479811]
[1748892092162,63.94964417,152.57,152.56,6.55479811]
[1748892096928,40.42,152.57,152.56,6.55479811]
[1748892099789,63.94964417,152.58,152.56,6.55479811]
[1748892100467,10.58,152.6,152.56,22.94179339]
[1748892100659,40.42,152.59,152.58,32.55393891]
[1748892101281,34.10964417,152.6,152.58,32.55393891]
[1748892101490,40.42,152.59,152.58,32.55393891]
[1748892101789,74.52964417,152.6,152.58,32.55393891]
[1748892103167,23.52964417,152.59,152.58,32.55393891]
[1748892105094,74.52964417,152.6,152.58,32.55393891]
[1748892106876,10.58,152.6,152.58,32.55393891]
[1748892107082,51.0,152.6,152.58,32.55393891]
[1748892107284,40.42,152.61,152.58,48.9387862]
[1748892107598,169.92964417,152.62,152.58,48.9387862]
[1748892107797,40.42,152.61,152.58,48.9387862]
[1748892108172,146.4,152.62,152.61,26.0]
[1748892108370,186.82,152.62,152.61,26.0]
[1748892108577,146.4,152.62,152.61,49.52964417]
[1748892109105,146.4,152.62,152.61,56.08229471]
[1748892109474,146.4,152.62,152.61,32.55265054]
[1748892109708,210.34964417,152.62,152.61,32.55265054]
[1748892110398,186.82,152.62,152.61,32.55265054]
[1748892113193,40.42,152.63,152.61,48.9342769]
[1748892113772,10.56,152.64,152.61,72.46392107]
[1748892113992,40.42,152.64,152.61,72.46392107]
[1748892114391,169.92964417,152.66,152.61,72.46392107]
[1748892114693,186.82,152.66,152.62,23.52964417]
[1748892116472,23.52964417,152.67,152.63,22.93127169]
[1748892116897,40.4,152.67,152.63,46.46091586]
[1748892117796,40.4,152.67,152.64,26.0]
[1748892117972,40.4,152.67,152.66,26.0]
[1748892118598,34.08964417,152.68,152.67,6.55007532]
[1748892118784,74.48964417,152.68,152.67,6.55007532]
[1748892119296,34.08964417,152.68,152.67,6.55007532]
[1748892119488,74.48964417,152.68,152.67,6.55007532]
[1748892120595,10.56,152.68,152.67,6.55007532]
[1748892120791,40.4,152.69,152.67,22.92526363]
[1748892121001,169.92964417,152.71,152.67,22.92526363]
[1748892121297,40.4,152.7,152.67,46.4549078]
[1748892121792,23.52964417,152.68,152.67,6.55007532]
[1748892122398,63.92964417,152.68,152.67,6.55007532]
[1748892123583,40.4,152.68,152.67,6.55007532]
[1748892123901,63.92964417,152.68,152.67,6.55007532]
[1748892124398,63.92964417,152.68,152.66,6.55033391]
[1748892124596,23.52964417,152.67,152.65,6.5509335]
[1748892126188,63.92964417,152.66,152.65,6.5509335]
[1748892126603,63.92964417,152.66,152.61,16.38060415]
[1748892126790,23.52964417,152.62,152.61,48.93325469]
[1748892127103,40.4,152.62,152.61,48.93325469]
[1748892128087,63.92964417,152.62,152.61,32.55265054]
[1748892128484,40.4,152.62,152.61,6.55265054]
[1748892128689,40.4,152.62,152.61,32.55265054]
[1748892131382,34.08964417,152.67,152.64,26.0]
[1748892131610,40.4,152.66,152.64,26.0]
[1748892131789,40.4,152.66,152.65,26.0]
[1748892132206,34.08964417,152.67,152.65,26.0]
[1748892132406,63.92964417,152.66,152.65,26.0]
[1748892133197,63.92964417,152.66,152.65,32.5509335]
[1748892134221,63.92964417,152.66,152.61,23.52964417]
[1748892134395,23.52964417,152.62,152.61,6.55265054]
[1748892134705,63.92964417,152.62,152.61,6.55265054]
[1748892135294,63.92964417,152.62,152.59,32.5535094]
[1748892135496,23.52964417,152.61,152.59,32.5535094]
[1748892137817,23.52964417,152.6,152.59,32.5535094]
[1748892138126,63.92964417,152.6,152.59,32.5535094]
[1748892139327,63.92964417,152.6,152.58,6.55377283]
[1748892139532,23.52964417,152.59,152.58,6.55377283]
[1748892141627,40.4,152.59,152.57,46.46993386]
[1748892141801,40.4,152.59,152.57,22.94028969]
[1748892142004,63.92964417,152.59,152.57,22.94028969]
[1748892142208,23.52964417,152.58,152.57,6.55436848]
[1748892145600,23.52964417,152.58,152.56,32.55460186]
[1748892145803,63.92964417,152.57,152.56,32.55460186]
[1748892147508,40.4,152.57,152.56,32.55460186]
[1748892149510,40.4,152.58,152.56,48.94159714]
[1748892149915,146.4,152.61,152.6,26.0]
[1748892150125,146.4,152.61,152.6,49.52964417]
[1748892150414,40.4,152.63,152.61,6.55265054]
[1748892151101,23.52964417,152.64,152.61,22.9342769]
[1748892151304,40.4,152.63,152.61,22.9342769]
[1748892153429,23.52964417,152.64,152.61,22.9342769]
[1748892153747,40.4,152.63,152.61,22.9342769]
[1748892154650,63.92964417,152.63,152.61,22.9342769]
[1748892155644,40.4,152.63,152.61,22.9342769]
[1748892156033,156.96,152.65,152.62,23.52964417]
[1748892156224,156.96,152.65,152.63,23.52964417]
[1748892156426,146.4,152.65,152.63,23.52964417]
[1748892156618,146.4,152.65,152.64,26.0]
[1748892157646,169.92964417,152.65,152.64,6.55136268]
[1748892157844,210.32964417,152.65,152.63,6.55163173]
[1748892158144,23.52964417,152.64,152.63,6.55163173]
[1748892158321,169.92964417,152.64,152.63,6.55163173]
[1748892159167,169.92964417,152.64,152.61,6.55265054]
[1748892159168,146.4,152.63,152.61,6.55265054]
[1748892159331,63.92964417,152.62,152.61,6.55265054]
[1748892160724,63.92964417,152.62,152.6,6.55307994]
[1748892164478,23.52964417,152.62,152.6,6.55307994]
[1748892164748,40.4,152.61,152.6,6.55307994]
[1748892165150,63.92964417,152.61,152.6,6.55307994]
[1748892170930,169.92964417,152.63,152.6,6.55307994]
[1748892171135,186.8,152.63,152.6,30.08272411]
[1748892171335,146.4,152.63,152.6,46.46542397]
[1748892171557,146.4,152.63,152.62,26.0]
[1748892171935,146.4,152.63,152.62,32.5522212]
[1748892172331,50.96,152.64,152.62,32.5522212]
[1748892173562,156.96,152.68,152.62,72.46241837]
[1748892173779,146.4,152.67,152.66,26.0]
[1748892173964,146.4,152.67,152.66,6.55050438]
[1748892175869,169.92964417,152.67,152.66,6.55050438]
[1748892176042,210.32964417,152.67,152.66,6.55050438]
[1748892176867,186.8,152.67,152.66,6.55050438]
[1748892177558,210.32964417,152.67,152.66,6.55050438]
[1748892178132,63.92964417,152.67,152.66,6.55050438]
[1748892179444,63.92964417,152.67,152.64,6.55136268]
[1748892179644,23.52964417,152.66,152.64,6.55136268]
[1748892179857,40.38,152.65,152.64,6.55136268]
[1748892180373,23.52964417,152.68,152.64,46.45941355]
[1748892180553,40.38,152.66,152.64,46.45941355]
[1748892180742,40.38,152.66,152.64,22.92976938]
[1748892181360,23.52964417,152.67,152.66,32.55050438]
[1748892181561,63.90964417,152.67,152.66,32.55050438]
[1748892182064,63.90964417,152.67,152.66,6.55050438]
[1748892183555,63.90964417,152.67,152.65,6.5509335]
[1748892183862,23.52964417,152.66,152.65,6.5509335]
[1748892184043,169.92964417,152.66,152.65,6.5509335]
[1748892185068,169.92964417,152.66,152.64,32.55118103]
[1748892185267,63.90964417,152.65,152.64,32.55118103]
[1748892185569,40.38,152.65,152.64,32.55118103]
[1748892187966,146.4,152.66,152.64,56.0808252]
[1748892188172,186.78,152.66,152.64,56.0808252]
[1748892190267,146.4,152.66,152.64,56.0808252]
[1748892190571,146.4,152.66,152.65,23.52964417]
[1748892192154,146.4,152.66,152.65,30.08057767]
[1748892193473,146.4,152.66,152.65,6.5509335]
[1748892194667,210.30964417,152.66,152.65,6.5509335]
[1748892194975,146.4,152.65,152.62,6.5522212]
[1748892195179,23.52964417,152.63,152.59,26.0]
[1748892195472,23.52964417,152.6,152.59,32.5535094]
[1748892195676,63.90964417,152.6,152.59,32.5535094]
[1748892197468,40.38,152.6,152.59,32.5535094]
[1748892198309,63.90964417,152.6,152.59,32.5535094]
[1748892199678,93.90964417,152.6,152.59,32.5535094]
[1748892201201,94.30444417,152.6,152.59,32.5535094]
[1748892202806,70.7748,152.6,152.59,32.5535094]
[1748892203182,30.3948,152.6,152.59,32.5535094]
[1748892203384,70.7748,152.6,152.59,32.5535094]
[1748892203688,40.7748,152.6,152.59,32.5535094]
[1748892204300,0.3948,152.6,152.59,56.08315357]
[1748892205020,0.3948,152.6,152.59,75.15928714]
[1748892208518,0.3948,152.6,152.59,115.53928714]
[1748892208693,50.94,152.68,152.6,0.42648471]
[1748892208886,10.56,152.71,152.67,49.52964417]
[1748892209209,74.46964417,152.71,152.67,26.0]
[1748892209411,23.52964417,152.7,152.67,26.0]
[1748892209711,63.90964417,152.7,152.67,26.0]
[1748892210006,23.52964417,152.69,152.68,26.0]
[1748892210196,23.52964417,152.69,152.61,69.56964886]
[1748892210197,23.52964417,152.69,152.64,23.52964417]
[1748892210394,23.52964417,152.69,152.67,26.0]
[1748892210904,63.90964417,152.7,152.68,6.54964631]
[1748892211409,23.52964417,152.69,152.68,6.54964631]
[1748892212494,63.90964417,152.7,152.68,6.54964631]
[1748892213695,23.52964417,152.69,152.68,6.54964631]
[1748892215093,63.90964417,152.7,152.68,6.54964631]
[1748892215506,23.52964417,152.69,152.68,6.54964631]
[1748892216987,23.52964417,152.69,152.67,26.0]
[1748892216988,146.4,152.68,152.67,6.54997524]
[1748892217298,210.28964417,152.68,152.66,32.55050438]
[1748892217498,186.76,152.68,152.66,32.55050438]
[1748892217813,210.28964417,152.68,152.66,32.55050438]
[1748892218493,186.76,152.68,152.66,32.55050438]
[1748892219413,146.4,152.68,152.66,32.55050438]
[1748892219796,169.92964417,152.68,152.66,32.55050438]
[1748892220507,146.4,152.68,152.66,32.55050438]
[1748892227622,169.92964417,152.68,152.66,32.55050438]
[1748892227824,63.88964417,152.67,152.66,32.55050438]
[1748892228328,40.36,152.67,152.66,32.55050438]
[1748892231520,146.4,152.68,152.66,32.55050438]
[1748892231734,186.76,152.68,152.66,32.55050438]
[1748892233596,186.76,152.68,152.66,56.08014855]
[1748892235318,146.4,152.68,152.66,56.08014855]
[1748892236723,146.4,152.68,152.66,32.55050438]
[1748892239401,63.88964417,152.67,152.6,22.9357798]
[1748892239596,23.52964417,152.63,152.6,22.9357798]
[1748892239799,63.88964417,152.63,152.6,22.9357798]
[1748892240013,63.88964417,152.63,152.62,26.0]
[1748892240213,40.36,152.63,152.62,26.0]
[1748892240527,186.76,152.66,152.63,26.0]
[1748892240735,146.4,152.66,152.65,23.52964417]
[1748892240938,40.36,152.68,152.65,23.52964417]
[1748892241102,10.54,152.69,152.67,26.0]
[1748892241307,50.9,152.69,152.67,26.0]
[1748892241707,10.54,152.69,152.68,6.54964631]
[1748892242001,34.06964417,152.69,152.68,6.54964631]
[1748892242807,10.54,152.69,152.68,6.54964631]
[1748892243441,34.06964417,152.69,152.68,6.54964631]
[1748892244465,34.06964417,152.69,152.67,6.54993214]
[1748892244628,63.88964417,152.68,152.67,6.54993214]
[1748892245515,63.88964417,152.68,152.65,32.55079702]
[1748892245716,23.52964417,152.66,152.65,32.55079702]
[1748892245946,63.88964417,152.66,152.65,32.55079702]
[1748892246746,63.88964417,152.66,152.64,26.0]
[1748892246954,23.52964417,152.65,152.64,26.0]
[1748892248121,23.52964417,152.65,152.64,32.55136268]
[1748892248534,63.88964417,152.66,152.64,32.55136268]
[1748892248836,63.88964417,152.67,152.64,48.92976938]
[1748892249446,40.36,152.67,152.64,48.92976938]
[1748892249737,63.88964417,152.67,152.64,48.92976938]
[1748892250117,40.36,152.67,152.64,48.92976938]
[1748892250428,146.4,152.68,152.65,23.52964417]
[1748892250938,146.4,152.68,152.64,72.45941355]
[1748892253739,146.4,152.68,152.66,23.52964417]
[1748892254121,10.54,152.69,152.66,23.52964417]
[1748892255651,10.54,152.69,152.67,32.55007532]
[1748892255824,162.89576374,152.72,152.7,26.0]
[1748892256140,203.25576374,152.72,152.7,26.0]
[1748892256353,146.4,152.72,152.71,23.52964417]
[1748892256645,146.4,152.76,152.72,26.0]
[1748892256848,10.54,152.77,152.75,23.52964417]
[1748892257349,10.54,152.77,152.74,23.52964417]
[1748892257850,10.54,152.77,152.75,6.54664484]
[1748892258622,10.54,152.77,152.74,26.0]
[1748892258623,23.52964417,152.76,152.74,26.0]
[1748892258818,23.52964417,152.75,152.74,26.0]
[1748892259454,23.52964417,152.75,152.72,6.54793085]
[1748892259745,23.52964417,152.73,152.69,6.54921736]
[1748892259926,23.52964417,152.71,152.69,6.54921736]
[1748892260126,23.52964417,152.73,152.69,46.45190495]
[1748892260327,23.52964417,152.72,152.69,22.92226078]
[1748892260526,23.52964417,152.72,152.69,32.54921736]
[1748892260722,23.52964417,152.7,152.69,32.54921736]
[1748892263030,40.34,152.72,152.69,32.54921736]
[1748892263229,23.52964417,152.71,152.69,32.54921736]
[1748892263443,23.52964417,152.7,152.69,32.54921736]
[1748892263847,23.52964417,152.71,152.69,32.54921736]
[1748892266944,169.92964417,152.71,152.69,32.54921736]
[1748892267151,146.4,152.71,152.69,32.54921736]
[1748892268829,169.92964417,152.71,152.69,32.54921736]
[1748892270258,23.52964417,152.7,152.69,32.54921736]
[1748892270445,146.4,152.75,152.72,26.0]
[1748892270646,23.52964417,152.73,152.72,26.0]
[1748892270848,23.52964417,152.74,152.73,6.54750212]
[1748892271052,146.4,152.75,152.73,6.54750212]
[1748892273673,146.4,152.75,152.73,30.07714629]
[1748892274141,23.52964417,152.77,152.73,46.4459016]
[1748892274540,23.52964417,152.78,152.75,26.0]
[1748892274742,169.92964417,152.84,152.77,23.52964417]
[1748892275045,186.74,152.84,152.81,6.54407434]
[1748892275245,23.52964417,152.83,152.81,6.54407434]
[1748892275565,186.74,152.84,152.81,6.54407434]
[1748892275869,186.74,152.84,152.78,32.54535934]
[1748892275870,23.52964417,152.82,152.78,32.54535934]
[1748892276171,23.52964417,152.81,152.78,48.90875769]
[1748892276471,63.84964417,152.82,152.78,72.43840186]
[1748892276840,63.84964417,152.82,152.78,48.90875769]
[1748892277084,23.52964417,152.81,152.8,26.0]
[1748892277356,63.84964417,152.82,152.8,26.0]
[1748892277739,63.84964417,152.82,152.78,48.90875769]
[1748892278861,63.84964417,152.82,152.78,72.43840186]
[1748892279936,23.52964417,152.81,152.78,32.54535934]
[1748892280138,40.32,152.82,152.78,32.54535934]
[1748892280139,23.52964417,152.79,152.78,32.54535934]
[1748892280645,169.92964417,152.8,152.78,32.54535934]
[1748892282372,23.52964417,152.79,152.77,26.0]
[1748892282580,23.52964417,152.79,152.72,1.5993]
[1748892282581,63.84964417,152.78,152.75,6.54664484]
[1748892282785,63.84964417,152.78,152.71,16.36982916]
[1748892282786,23.52964417,152.76,152.74,26.0]
[1748892282950,23.52964417,152.75,152.74,26.0]
[1748892283145,23.52964417,152.75,152.74,32.54707345]
[1748892283363,23.52964417,152.75,152.72,32.54750253]
[1748892283678,23.52964417,152.75,152.72,48.91732966]
[1748892283846,23.52964417,152.74,152.72,48.91732966]
[1748892285569,40.32,152.76,152.72,48.91732966]
[1748892285742,23.52964417,152.75,152.72,48.91732966]
[1748892286167,23.52964417,152.74,152.72,48.91732966]
[1748892286350,40.32,152.76,152.72,48.91732966]
[1748892286547,23.52964417,152.74,152.72,48.91732966]
[1748892286767,23.52964417,152.74,152.72,32.54750253]
[1748892287373,23.52964417,152.75,152.72,48.91732966]
[1748892288345,23.52964417,152.74,152.72,48.91732966]
[1748892288676,23.52964417,152.73,152.72,32.54750253]
[1748892288853,23.52964417,152.74,152.72,32.54750253]
[1748892290662,50.84,152.76,152.72,32.54750253]
[1748892290868,23.52964417,152.74,152.72,32.54750253]
[1748892292354,23.52964417,152.75,152.72,32.54750253]
[1748892292554,146.4,152.77,152.73,23.52964417]
[1748892292872,146.4,152.77,152.76,26.0]
[1748892293982,169.92964417,152.77,152.76,26.0]
[1748892294172,169.92964417,152.77,152.74,6.54707345]
[1748892294374,23.52964417,152.75,152.74,6.54707345]
[1748892295167,23.52964417,152.75,152.73,32.5473269]
[1748892295481,23.52964417,152.74,152.73,32.5473269]
[1748892295780,23.52964417,152.74,152.72,6.54776303]
[1748892295988,23.52964417,152.73,152.72,6.54776303]
[1748892296183,23.52964417,152.73,152.71,32.54813832]
[1748892296487,23.52964417,152.72,152.71,32.54813832]
[1748892296678,23.52964417,152.72,152.71,6.54813832]
[1748892297883,23.52964417,152.72,152.7,26.0]
[1748892298181,23.52964417,152.71,152.7,26.0]
[1748892298593,23.52964417,152.71,152.7,32.54878847]
[1748892299086,23.52964417,152.71,152.68,32.54964631]
[1748892299284,23.52964417,152.69,152.68,32.54964631]
[1748892299986,63.84964417,152.7,152.68,32.54964631]
[1748892300186,23.52964417,152.69,152.68,32.54964631]
[1748892300391,146.4,152.68,152.63,6.55179191]
[1748892300606,23.52964417,152.64,152.63,6.55179191]
[1748892301097,40.32,152.67,152.63,56.08143608]
[1748892301265,146.4,152.68,152.63,72.46091586]
[1748892301462,210.24964417,152.68,152.66,26.0]
[1748892301874,23.52964417,152.67,152.66,26.0]
[1748892302284,210.24964417,152.68,152.67,6.55007532]
[1748892302772,10.52,152.69,152.67,6.55007532]
[1748892302773,34.04964417,152.69,152.67,6.55007532]
[1748892302975,10.52,152.69,152.67,6.55007532]
[1748892303482,34.04964417,152.69,152.67,6.55007532]
[1748892304476,10.52,152.69,152.67,30.07971949]
[1748892304673,71.50864099,152.71,152.67,46.4549078]
[1748892304894,7.65899682,152.71,152.67,46.4549078]
[1748892305986,7.65899682,152.71,152.68,23.52964417]
[1748892307002,31.18864099,152.71,152.67,46.4549078]
[1748892307381,23.52964417,152.69,152.67,6.55007532]
[1748892309400,23.52964417,152.68,152.67,6.55007532]
[1748892310507,23.52964417,152.69,152.67,6.55007532]
[1748892310814,47.99899682,152.71,152.67,46.4549078]
[1748892311013,7.65899682,152.71,152.7,26.0]
[1748892311913,7.65899682,152.71,152.7,32.54878847]
[1748892312483,31.18864099,152.71,152.7,32.54878847]
[1748892312708,31.18864099,152.71,152.62,16.380553]
[1748892312895,23.52964417,152.67,152.63,23.52964417]
[1748892313216,146.4,152.7,152.67,26.0]
[1748892313217,40.34,152.68,152.67,26.0]
[1748892313884,23.52964417,152.69,152.67,32.55007532]
[1748892314089,23.52964417,152.69,152.67,6.55007532]
[1748892315081,23.52964417,152.68,152.67,32.55007532]
[1748892315279,186.74,152.7,152.67,48.92526363]
[1748892315705,23.52964417,152.69,152.67,48.92526363]
[1748892315887,186.74,152.7,152.66,6.55050438]
[1748892315888,23.52964417,152.68,152.66,6.55050438]
[1748892316104,186.74,152.7,152.66,22.92676535]
[1748892316105,23.52964417,152.69,152.66,22.92676535]
[1748892317116,146.4,152.68,152.66,22.92676535]
[1748892320403,146.4,152.68,152.66,6.55050438]
[1748892321023,169.92964417,152.68,152.66,6.55050438]
[1748892321192,186.74,152.68,152.66,6.55050438]
[1748892321828,146.4,152.68,152.66,30.08014855]
[1748892326419,146.4,152.68,152.66,6.55050438]
[1748892326801,23.52964417,152.67,152.66,6.55050438]
[1748892328522,220.78964417,152.68,152.66,6.55050438]
[1748892329224,197.26,152.68,152.66,6.55050438]
[1748892330232,220.78964417,152.68,152.66,6.55050438]
[1748892330417,23.52964417,152.67,152.66,6.55050438]
[1748892331118,23.52964417,152.67,152.65,6.55074587]
[1748892331320,23.52964417,152.67,152.6,6.55307994]
[1748892331321,210.26964417,152.66,152.6,6.55307994]
[1748892331632,23.52964417,152.62,152.6,6.55307994]
[1748892331815,63.86964417,152.62,152.6,32.55307994]
[1748892333221,146.4,152.61,152.6,32.55307994]
[1748892333399,146.4,152.61,152.6,6.55307994]
[1748892334326,146.4,152.61,152.59,42.38308858]
[1748892334916,169.92964417,152.61,152.59,42.38308858]
[1748892335152,63.86964417,152.6,152.58,6.55393891]
[1748892336101,146.4,152.61,152.6,26.0]
[1748892336527,23.52964417,152.63,152.6,48.9357798]
[1748892336732,63.86964417,152.63,152.6,48.9357798]
[1748892336918,40.34,152.63,152.6,48.9357798]
[1748892337936,63.86964417,152.63,152.6,48.9357798]
[1748892339407,23.52964417,152.62,152.6,48.9357798]
[1748892340533,23.52964417,152.62,152.6,32.55307994]
[1748892340712,63.86964417,152.61,152.6,32.55307994]
[1748892340906,40.34,152.61,152.6,32.55307994]
[1748892342131,63.86964417,152.61,152.6,32.55307994]
[1748892344022,40.34,152.61,152.6,32.55307994]
[1748892346418,63.86964417,152.61,152.6,32.55307994]
[1748892348038,63.86964417,152.61,152.56,31.8629775]
[1748892348231,23.52964417,152.59,152.57,32.55436848]
[1748892348416,23.52964417,152.6,152.57,48.94028969]
[1748892348621,23.52964417,152.6,152.57,22.94028969]
[1748892349439,63.86964417,152.61,152.57,72.46993386]
[1748892351345,169.92964417,152.6,152.57,48.94028969]
[1748892351651,40.36,152.59,152.57,48.94028969]
[1748892351829,146.4,152.6,152.57,72.46993386]
[1748892353139,146.4,152.66,152.64,6.55136268]
[1748892353346,186.76,152.66,152.64,6.55136268]
[1748892354326,146.4,152.66,152.64,6.55136268]
[1748892354526,186.76,152.66,152.64,6.55136268]
[1748892355239,23.52964417,152.65,152.63,32.55166276]
[1748892355439,186.76,152.66,152.63,32.55166276]
[1748892355440,63.88964417,152.64,152.63,32.55166276]
[1748892355833,40.36,152.64,152.63,32.55166276]
[1748892360461,146.4,152.66,152.63,72.46078671]
[1748892360758,146.4,152.66,152.65,23.52964417]
[1748892361259,146.4,152.66,152.64,23.52964417]
[1748892362449,146.4,152.66,152.65,6.5509335]
[1748892366266,50.88,152.68,152.65,46.45791144]
[1748892366834,146.4,152.7,152.68,26.0]
[1748892367133,146.4,152.7,152.68,49.52964417]
[1748892367334,42.09535541,152.72,152.71,26.0]
[1748892367566,156.92,152.75,152.71,23.52964417]
[1748892367567,40.34,152.74,152.71,23.52964417]
[1748892367744,40.34,152.74,152.72,23.52964417]
[1748892368061,197.26,152.75,152.73,6.54750212]
[1748892368233,156.92,152.75,152.73,6.54750212]
[1748892368864,146.4,152.75,152.74,23.52964417]
[1748892369231,146.4,152.75,152.73,6.54750212]
[1748892369433,169.92964417,152.75,152.73,6.54750212]
[1748892369657,63.86964417,152.74,152.73,6.54750212]
[1748892371866,63.86964417,152.74,152.72,32.54779831]
[1748892372035,63.86964417,152.74,152.72,6.54779831]
[1748892372036,169.92964417,152.73,152.72,6.54779831]
[1748892372436,146.4,152.73,152.71,6.54835963]
[1748892375736,146.4,152.73,152.72,26.0]
[1748892375966,169.92964417,152.77,152.72,49.52964417]
[1748892376137,63.84964417,152.76,152.72,49.52964417]
[1748892376746,63.84964417,152.76,152.73,26.0]
[1748892376747,23.52964417,152.74,152.73,26.0]
[1748892376953,63.84964417,152.74,152.73,26.0]
[1748892377668,63.84964417,152.74,152.73,32.54750212]
[1748892380287,63.84964417,152.74,152.73,32.54750212]
[1748892381149,15.99930683,152.81,152.73,48.91625743]
[1748892381358,23.52964417,152.77,152.73,72.4459016]
[1748892381587,23.52964417,152.76,152.73,48.91625743]
[1748892383396,23.52964417,152.75,152.73,48.91625743]
[1748892384154,23.52964417,152.76,152.73,48.91625743]
[1748892385372,23.52964417,152.75,152.73,32.54750212]
[1748892385557,63.84964417,152.75,152.73,32.54750212]
[1748892386094,23.52964417,152.74,152.73,32.54750212]
[1748892387674,23.52964417,152.74,152.72,26.0]
[1748892387981,40.32,152.73,152.72,26.0]
[1748892388572,40.32,152.73,152.72,32.54793085]
[1748892388780,40.32,152.73,152.72,6.54793085]
[1748892388781,63.84964417,152.73,152.72,6.54793085]
[1748892388981,146.4,152.72,152.66,22.92676535]
[1748892389161,23.52964417,152.69,152.66,22.92676535]
[1748892389357,63.84964417,152.69,152.68,26.0]
[1748892390079,40.32,152.69,152.66,22.92676535]
[1748892390663,63.84964417,152.69,152.68,26.0]
[1748892391889,63.84964417,152.69,152.68,32.54964631]
[1748892392959,40.32,152.69,152.68,32.54964631]
[1748892396290,63.84964417,152.69,152.68,32.54964631]
[1748892403286,40.32,152.69,152.68,32.54964631]
[1748892403493,63.84964417,152.69,152.68,32.54964631]
[1748892403693,63.84964417,152.69,152.67,6.54999038]
[1748892403864,23.52964417,152.68,152.67,6.54999038]
[1748892410683,10.52,152.71,152.67,22.92517869]
[1748892410886,40.32,152.7,152.67,46.45482286]
[1748892411299,23.52964417,152.69,152.67,6.54999038]
[1748892413495,40.32,152.7,152.67,22.92517869]
[1748892413683,63.84964417,152.7,152.67,22.92517869]
[1748892414390,23.52964417,152.69,152.67,6.54999038]
[1748892417800,63.84964417,152.69,152.67,6.54999038]
[1748892424535,23.52964417,152.68,152.6,1.6353]
[1748892424831,23.52964417,152.61,152.59,22.93728291]
[1748892424996,63.84964417,152.62,152.59,22.93728291]
[1748892425195,63.84964417,152.62,152.61,26.0]
[1748892425619,10.52,152.64,152.61,72.46392107]
[1748892425813,146.4,152.66,152.65,26.0]
[1748892426626,169.92964417,152.66,152.65,26.0]
[1748892426927,210.24964417,152.66,152.61,6.55265054]